lending/lending_fUSD_20240603
["ID","MTS","AMOUNT","RATE_DAILY","PERIOD"]
[328471484,1717423859888,-500.0,0.00032874,4]
[328471485,1717423859900,-874.8,0.00032874,4]
[328471486,1717423859910,-840.86,0.00032874,4]
[328471487,1717423859922,-500.0,0.00032874,4]
[328471488,1717423859932,-500.0,0.00032874,4]
[328471489,1717423859942,-500.0,0.00032874,4]
[328471490,1717423859951,-500.0,0.00032874,4]
[328471491,1717423859961,-500.0,0.00032874,4]
[328471492,1717423859971,-500.0,0.00032874,4]
[328471493,1717423859981,-500.0,0.00032874,4]
[328471494,1717423859990,-500.0,0.00032874,4]
[328471495,1717423860000,-588.11,0.00032874,4]
[328471496,1717423860010,-500.0,0.00032874,4]
[328471497,1717423860020,-500.0,0.00032874,4]
[328471498,1717423860029,-516.13,0.00032874,4]
[328471499,1717423860039,-529.46,0.00032874,4]
[328471500,1717423860048,-500.0,0.00032874,4]
[328471501,1717423860058,-500.0,0.00032874,4]
[328471502,1717423860068,-606.72,0.00032874,4]
[328471503,1717423860077,-519.1,0.00032874,4]
[328471504,1717423860086,-500.0,0.00032874,4]
[328471505,1717423860096,-4664.69,0.00032874,4]
[328471506,1717423860105,-877.52,0.00032874,4]
[328471507,1717423860115,-881.93,0.00032874,4]
[328471508,1717423860124,-512.78,0.00032874,4]
[328471509,1717423860134,-500.0,0.00032874,4]
[328471510,1717423860145,-504.37,0.00032874,4]
[328471511,1717423860154,-2125.65,0.00032874,4]
[328471512,1717423860164,-542.95,0.00032874,4]
[328471513,1717423860173,-500.0,0.00032874,4]
[328471514,1717423860182,-630.75,0.00032874,4]
[328471515,1717423860191,-500.0,0.00032874,4]
[328471516,1717423860202,-525.61,0.00032874,4]
[328471517,1717423860211,-500.0,0.00032874,4]
[328471518,1717423860221,-500.0,0.00032874,4]
[328471519,1717423860231,-500.0,0.00032874,4]
[328471520,1717423860240,-784.39,0.00032874,4]
[328471521,1717423860250,-748.96,0.00032874,4]
[328471522,1717423860260,-500.0,0.00032874,4]
[328471523,1717423860270,-500.0,0.00032874,4]
[328471524,1717423860279,-616.01,0.00032874,4]
[328471525,1717423860289,-500.0,0.00032874,4]
[328471526,1717423860299,-653.74,0.00032874,4]
[328471527,1717423860308,-500.0,0.00032874,4]
[328471528,1717423860319,-1158.99,0.00032874,4]
[328471529,1717423860329,-500.0,0.00032874,4]
[328471530,1717423860339,-362.57576681,0.00032874,4]
[328471531,1717423860348,-500.0,0.00032874,4]
[328471532,1717423860358,-802.19,0.00032874,4]
[328471533,1717423860368,-500.0,0.00032874,4]
[328471534,1717423860378,-500.0,0.00032874,4]
[328471535,1717423860387,-500.0,0.00032874,4]
[328471536,1717423860398,-500.0,0.00032874,4]
[328471537,1717423860407,-150.0,0.00032875,2]
[328471538,1717423860416,-150.0,0.00032875,2]
[328471539,1717423860426,-150.0,0.00032875,2]
[328471540,1717423860435,-151.0,0.00032875,7]
[328471541,1717423860445,-2505.42,0.00032875,2]
[328471542,1717423860454,-307.55,0.00032876,7]
[328471543,1717423860464,-307.55,0.00032876,7]
[328471544,1717423860473,-500.0,0.00032876,4]
[328471545,1717423860483,-1068.06,0.00032876,4]
[328471546,1717423860492,-500.0,0.00032876,4]
[328471547,1717423860501,-500.0,0.00032876,4]
[328471548,1717423860510,-500.0,0.00032876,7]
[328471549,1717423860521,-506.79642234,0.00032876,7]
[328471550,1717423860530,-500.4506101,0.00032876,7]
[328471551,1717423860541,-500.0,0.00032876,4]
[328471552,1717423860551,-500.0,0.00032876,4]
[328471553,1717423860560,-500.0,0.00032876,4]
[328471554,1717423860570,-500.0,0.00032876,4]
[328471555,1717423860580,-918.28,0.00032876,4]
[328471556,1717423860590,-1370.83,0.00032876,4]
[328471557,1717423860600,-500.0,0.00032876,4]
[328471558,1717423860610,-500.0,0.00032876,4]
[328471559,1717423860620,-1000.18,0.00032876,4]
[328471560,1717423860630,-500.0,0.00032876,4]
[328471561,1717423860639,-2105.69,0.00032876,4]
[328471562,1717423860651,-698.67,0.00032876,4]
[328471563,1717423860661,-898.54,0.00032876,4]
[328471564,1717423860670,-5027.84,0.00032876,4]
[328471565,1717423860679,-500.0,0.00032876,4]
[328471566,1717423860689,-500.0,0.00032876,4]
[328471567,1717423860698,-612.3,0.00032876,4]
[328471568,1717423860708,-500.0,0.00032876,4]
[328471569,1717423860718,-500.0,0.00032876,4]
[328471570,1717423860727,-500.0,0.00032876,4]
[328471571,1717423860737,-500.0,0.00032876,4]
[328471572,1717423860747,-500.0,0.00032876,4]
[328471573,1717423860756,-500.0,0.00032876,4]
[328471574,1717423860766,-500.0,0.00032876,4]
[328471575,1717423860776,-500.0,0.00032876,4]
[328471576,1717423860786,-618.53,0.00032876,4]
[328471577,1717423860795,-598.01,0.00032876,4]
[328471578,1717423860804,-4233.41,0.00032876,4]
[328471579,1717423860814,-500.0,0.00032876,4]
[328471580,1717423860823,-500.0,0.00032876,4]
[328471581,1717423860833,-500.0,0.00032876,4]
[328471582,1717423860848,-500.0,0.00032876,4]
[328471583,1717423860857,-500.0,0.00032876,4]
[328471584,1717423860867,-278.15263372,0.00032876,4]
[328471585,1717423860876,-500.0,0.00032876,4]
[328471586,1717423860887,-523.72,0.00032876,4]
[328471587,1717423860899,-609.53,0.00032884,2]
[328471588,1717423860908,-150.0,0.0003289,2]
[328471589,1717423860919,-205.61494895,0.0003289,7]
[328471590,1717423860928,-500.0,0.00032899,4]
[328471591,1717423860939,-500.0,0.00032899,4]
[328471592,1717423860949,-500.0,0.00032899,4]
[328471593,1717423860959,-500.0,0.00032899,4]
[328471594,1717423860968,-1129.10589386,0.000329,30]
[328471595,1717423860978,-3583.0,0.000329,2]
[328471596,1717423860988,-500.0,0.000329,2]
[328471597,1717423860997,-168042.48853363,0.000329,30]
[328471598,1717423861076,-236.20903743,0.0003021,2]
[328471599,1717423861086,-477.64002422,0.00030237,2]
[328471600,1717423861095,-500.0,0.00030408,4]
[328471601,1717423861104,-500.0,0.00030684,4]
[328471602,1717423861114,-453.94181576,0.00031506,4]
[328471603,1717423861123,-479.04585765,0.00032,2]
[328471604,1717423861134,-986.88934311,0.00032,2]
[328471605,1717423861145,-1465.93520076,0.00032,2]
[328471606,1717423861154,-3834.18185265,0.000329,30]
[328471607,1717423861165,-1296.98145847,0.000329,30]
[328471608,1717423861176,-1401.83,0.000329,30]
[328471609,1717423861187,-313.57105066,0.000329,30]
[328471610,1717423861198,-545.15058203,0.000329,30]
[328471611,1717423861209,-97352.96209,0.000329,30]
[328471612,1717423861220,-2196.97847733,0.000329,30]
[328471613,1717423861232,-436.42285295,0.000329,30]
[328471614,1717423861243,-1319.092,0.000329,30]
[328471615,1717423861254,-6989.8419,0.000329,30]
[328471616,1717423861731,-798.0049,0.00030124,10]
[328471617,1717423861744,-472.0351,0.00030124,10]
[328471618,1717423861754,-156.35946452,0.00030856,3]
[328471619,1717423861764,-224.69559477,0.00030958,4]
[328471620,1717423861777,-275.30440523,0.00030958,4]
[328471621,1717423861786,-641.62,0.00031232,4]
[328471622,1717423861796,-10.6624503,0.00031633,7]
[328471623,1717423861809,-140.3375497,0.00031633,7]
[328471624,1717423861820,-320.24304106,0.00031755,2]
[328471625,1717423861829,-1465.93520076,0.00032,2]
[328471626,1717423861842,-1465.93520076,0.00032,2]
[328471627,1717423861853,-1465.93520076,0.00032,2]
[328471628,1717423861862,-1465.93520076,0.00032,2]
[328471629,1717423861873,-151.0,0.00032,7]
[328471630,1717423861883,-1465.93520076,0.00032,2]
[328471631,1717423861895,-1465.93520076,0.00032,2]
[328471632,1717423861904,-1465.93520076,0.00032,2]
[328471633,1717423861914,-1465.93520076,0.00032,2]
[328471634,1717423861926,-1465.93520076,0.00032,2]
[328471635,1717423861937,-1465.93520076,0.00032,2]
[328471636,1717423861948,-1465.93520076,0.00032,2]
[328471637,1717423861958,-1465.93520076,0.00032,2]
[328471638,1717423861967,-1465.93520076,0.00032,2]
[328471639,1717423861979,-1465.93520076,0.00032,2]
[328471640,1717423861989,-1465.93520076,0.00032,2]
[328471641,1717423861999,-1465.93520076,0.00032,2]
[328471642,1717423862009,-1465.93520076,0.00032,2]
[328471643,1717423862021,-1465.93520076,0.00032,2]
[328471644,1717423862032,-1465.93520076,0.00032,2]
[328471645,1717423862042,-1465.93520076,0.00032,2]
[328471646,1717423862053,-1465.93520076,0.00032,2]
[328471647,1717423862063,-1465.93520076,0.00032,2]
[328471648,1717423862072,-1465.93520076,0.00032,2]
[328471649,1717423862083,-1465.93520076,0.00032,2]
[328471650,1717423862092,-1465.93520076,0.00032,2]
[328471651,1717423862102,-1465.93520076,0.00032,2]
[328471652,1717423862112,-1465.93520076,0.00032,2]
[328471653,1717423862121,-1465.93520076,0.00032,2]
[328471654,1717423862131,-1465.93520076,0.00032,2]
[328471655,1717423862143,-1465.93520076,0.00032,2]
[328471656,1717423862153,-151.0,0.00032054,7]
[328471657,1717423862162,-151.0,0.00032423,7]
[328471658,1717423862171,-151.0,0.00032647,7]
[328471659,1717423862180,-151.0,0.00032798,7]
[328471660,1717423862191,-770.49401448,0.000329,30]
[328471661,1717423862213,-1465.93520076,0.00032,2]
[328471662,1717423862222,-1465.93520076,0.00032,2]
[328471663,1717423862232,-79684.98141508,0.000329,30]
[328471664,1717423862241,-307.55,0.000329,7]
[328471665,1717423862251,-307.55,0.000329,7]
[328471666,1717423862261,-365514.62869183,0.000329,30]
[328471667,1717423862275,-310.24010705,0.000329,30]
[328471668,1717423862330,-2689.0618997,0.00030146,2]
[328471669,1717423862344,-326.84017377,0.00030146,2]
[328471670,1717423862362,-255.9999999,0.00030146,2]
[328471671,1717423862373,-836.87762474,0.00030146,2]
[328471672,1717423862384,-265.3152162,0.00030146,2]
[328471673,1717423862396,-504.57508569,0.00030146,2]
[328471674,1717423862406,-117.64474838,0.00032,2]
[328471675,1717423862417,-1348.29045238,0.00032,2]
[328471676,1717423862426,-1465.93520076,0.00032,2]
[328471677,1717423862436,-1465.93520076,0.00032,2]
[328471678,1717423862445,-1465.93520076,0.00032,2]
[328471679,1717423862455,-1465.93520076,0.00032,2]
[328471680,1717423862464,-1465.93520076,0.00032,2]
[328471681,1717423862473,-15918.24189672,0.000329,30]
[328471682,1717423862483,-758.0,0.000329,2]
[328471683,1717423862492,-1000.0,0.000329,2]
[328471684,1717423862502,-151.0,0.000329,7]
[328471685,1717423862512,-244.34860866,0.000329,7]
[328471686,1717423862524,-27.07982334,0.000329,7]
[328471687,1717423862534,-151.0,0.000329,7]
[328471688,1717423862544,-151.0,0.000329,7]
[328471689,1717423862553,-211.334701,0.000329,7]
[328471690,1717423862563,-211.334701,0.000329,7]
[328471691,1717423862573,-149.6279632,0.000329,7]
[328471692,1717423862585,-61.7067378,0.000329,7]
[328471693,1717423862594,-211.334701,0.000329,7]
[328471694,1717423862604,-142.06157528,0.000329,7]
[328471695,1717423862616,-69.27312572,0.000329,7]
[328471696,1717423862626,-211.334701,0.000329,7]
[328471697,1717423862636,-374.531371,0.000329,7]
[328471698,1717423862647,-374.531371,0.000329,7]
[328471699,1717423862656,-151.0,0.000329,7]
[328471700,1717423862665,-374.531371,0.000329,7]
[328471701,1717423862675,-151.0,0.000329,7]
[328471702,1717423862685,-374.531371,0.000329,7]
[328471703,1717423862694,-1000.0,0.000329,7]
[328471704,1717423862704,-236.663055,0.000329,7]
[328471705,1717423862713,-151.0,0.000329,7]
[328471706,1717423862724,-150.0,0.00032911,2]
[328471707,1717423862733,-150.0,0.00032912,2]
[328471708,1717423862742,-153.85634239,0.00032914,7]
[328471709,1717423862752,-150.0,0.00032916,2]
[328471710,1717423862761,-150.0,0.00032919,2]
[328471711,1717423862771,-150.0,0.00032923,2]
[328471712,1717423862780,-2310.8176111,0.00032924,4]
[328471713,1717423862793,-1029.27,0.00032924,4]
[328471714,1717423862805,-741.3170906,0.00032924,4]
[328471715,1717423862816,-1000.00663,0.00032924,4]
[328471716,1717423862828,-995.94,0.00032924,4]
[328471717,1717423862841,-708.3902687,0.00032924,4]
[328471718,1717423862855,-969.88053301,0.00032924,4]
[328471719,1717423862866,-515.28705452,0.00032924,4]
[328471720,1717423862879,-709.08266212,0.00032924,4]
[328471721,1717423862890,-235.21413035,0.00032924,4]
[328471722,1717423862901,-1166.78586965,0.00032928,2]
[328471723,1717423862912,-3833.21413035,0.00032928,2]
[328471724,1717423862924,-150.0,0.0003293,2]
[328471725,1717423862934,-150.0,0.00032941,2]
[328471726,1717423862943,-150.0,0.00032943,2]
[328471727,1717423862952,-1791.51,0.00032951,2]
[328471728,1717423862962,-150.0,0.00032952,2]
[328471729,1717423862972,-14622.1623454,0.00032952,2]
[328471730,1717423862983,-1466.88746637,0.00032952,2]
[328471731,1717423862994,-703.20536157,0.00032952,2]
[328471732,1717423863005,-7042.92,0.00032952,2]
[328471733,1717423863016,-461.61248665,0.00032952,2]
[328471734,1717423863027,-703.21234001,0.00032952,2]
[328471735,1717423863036,-150.0,0.00032957,2]
[328471736,1717423863045,-150.0,0.0003296,2]
[328471737,1717423863055,-150.0,0.0003296,2]
[328471738,1717423863064,-175.59308504,0.00032965,3]
[328471739,1717423863073,-238.50421901,0.00032965,4]
[328471740,1717423863101,-13.98866558,0.00032965,4]
[328471741,1717423863110,-6619.43843442,0.00032965,2]
[328471742,1717423863121,-281.186742,0.00032965,2]
[328471743,1717423863133,-4748.16634652,0.00032965,2]
[328471744,1717423863143,-150.0,0.00032967,2]
[328471745,1717423863152,-150.0,0.00032974,2]
[328471746,1717423863162,-150.0,0.00032978,2]
[328471747,1717423863171,-3455.39202086,0.0003298,14]
[328471748,1717423863182,-408.28558783,0.0003298,14]
[328471749,1717423863192,-4615.48261927,0.0003298,14]
[328471750,1717423863204,-253.44497898,0.0003298,14]
[328471751,1717423863215,-345.91147168,0.0003298,14]
[328471752,1717423863295,-11990.41920699,0.0003298,14]
[328471753,1717423863461,-500.0,0.00030136,4]
[328471754,1717423863470,-500.0,0.0003041,4]
[328471755,1717423863479,-500.0,0.00030684,4]
[328471756,1717423863488,-422.0,0.00032466,2]
[328471757,1717423863497,-21793.11624208,0.0003298,14]
[328471758,1717423863506,-1500.0,0.0003298,2]
[328471759,1717423863515,-2500.0,0.00032982,2]
[328471760,1717423863524,-150.0,0.00032985,2]
[328471761,1717423863534,-1163.53444751,0.00032995,3]
[328471762,1717423863543,-300.0,0.00032996,2]
[328471763,1717423863552,-7973.62586278,0.00033,2]
[328471764,1717423863561,-10000.0,0.00033,27]
[328471765,1717423863570,-155.0,0.00033,4]
[328471766,1717423863677,-10078.0,0.00033,5]
[328471767,1717423863690,-150.0,0.00033,2]
[328471768,1717423863700,-150.0,0.00033003,2]
[328471769,1717423863711,-150.0,0.00033008,2]
[328471770,1717423863721,-156.75576779,0.00033009,2]
[328471771,1717423863731,-773.0,0.00033014,2]
[328471772,1717423863741,-660.0,0.00033014,2]
[328471773,1717423863751,-157.44336949,0.00033018,7]
[328471774,1717423863761,-150.0,0.00033024,2]
[328471775,1717423863771,-700.0,0.00033026,10]
[328471776,1717423863780,-500.0,0.00033032,10]
[328471777,1717423863790,-500.0,0.00033033,10]
[328471778,1717423863799,-200.0,0.00033033,10]
[328471779,1717423863809,-500.0,0.00033036,3]
[328471780,1717423863818,-150.0,0.00033038,2]
[328471781,1717423863828,-150.0,0.00033041,2]
[328471782,1717423863839,-1500.0,0.00033044,2]
[328471783,1717423863853,-500.0,0.00033045,3]
[328471784,1717423863864,-157.75,0.00033045,2]
[328471785,1717423863874,-531.24159769,0.0003305,2]
[328471786,1717423863885,-150.0,0.00033051,2]
[328471787,1717423863896,-500.0,0.00033054,3]
[328471788,1717423863908,-150.0,0.00033061,2]
[328471789,1717423863919,-9215.2059804,0.00033062,5]
[328471790,1717423863929,-500.0,0.00033063,3]
[328471791,1717423863939,-150.0,0.00033067,2]
[328471792,1717423863948,-500.0,0.00033071,3]
[328471793,1717423863958,-150.0,0.00033073,2]
[328471794,1717423863967,-150.0,0.00033073,2]
[328471795,1717423863978,-500.0,0.0003308,3]
[328471796,1717423863987,-500.0,0.00033089,3]
[328471797,1717423863998,-150.0,0.00033095,2]
[328471798,1717423864008,-2042.88181228,0.00033097,7]
[328471799,1717423864017,-500.0,0.00033098,3]
[328471800,1717423864027,-150.0,0.00033098,2]
[328471801,1717423864035,-150.0,0.00033105,2]
[328471802,1717423864045,-500.0,0.00033107,3]
[328471803,1717423864054,-150.0,0.00033107,2]
[328471804,1717423864064,-150.0,0.00033109,2]
[328471805,1717423864074,-150.0,0.00033114,2]
[328471806,1717423864083,-500.0,0.00033115,3]
[328471807,1717423864093,-500.0,0.00033124,3]
[328471808,1717423864103,-2042.88181228,0.00033126,7]
[328471809,1717423864112,-150.0,0.00033132,2]
[328471810,1717423864121,-150.0,0.00033134,2]
[328471811,1717423864131,-150.0,0.00033139,2]
[328471812,1717423864140,-500.0,0.00033148,4]
[328471813,1717423864154,-757.65,0.00033148,4]
[328471814,1717423864163,-500.0,0.00033148,4]
[328471815,1717423864172,-874.8,0.00033148,4]
[328471816,1717423864182,-840.86,0.00033148,4]
[328471817,1717423864191,-162.64,0.00033148,4]
[328471818,1717423864200,-553.74784442,0.00033148,4]
[328471819,1717423864210,-500.0,0.00033148,4]
[328471820,1717423864218,-500.0,0.00033148,4]
[328471821,1717423864228,-384.82608077,0.00033148,4]
[328471822,1717423864238,-500.0,0.00033148,4]
[328471823,1717423864248,-500.0,0.00033148,4]
[328471824,1717423864257,-588.11,0.00033148,4]
[328471825,1717423864266,-500.0,0.00033148,4]
[328471826,1717423864276,-500.0,0.00033148,4]
[328471827,1717423864285,-516.13,0.00033148,4]
[328471828,1717423864294,-529.46,0.00033148,4]
[328471829,1717423864303,-500.0,0.00033148,4]
[328471830,1717423864313,-500.0,0.00033148,4]
[328471831,1717423864323,-606.72,0.00033148,4]
[328471832,1717423864332,-500.0,0.00033148,4]
[328471833,1717423864341,-4664.69,0.00033148,4]
[328471834,1717423864351,-881.93,0.00033148,4]
[328471835,1717423864360,-512.78,0.00033148,4]
[328471836,1717423864369,-500.0,0.00033148,4]
[328471837,1717423864379,-504.37,0.00033148,4]
[328471838,1717423864388,-2125.65,0.00033148,4]
[328471839,1717423864400,-542.95,0.00033148,4]
[328471840,1717423864409,-500.0,0.00033148,4]
[328471841,1717423864418,-630.75,0.00033148,4]
[328471842,1717423864427,-500.0,0.00033148,4]
[328471843,1717423864436,-525.61,0.00033148,4]
[328471844,1717423864445,-500.0,0.00033148,4]
[328471845,1717423864454,-500.0,0.00033148,4]
[328471846,1717423864464,-500.0,0.00033148,4]
[328471847,1717423864474,-784.39,0.00033148,4]
[328471848,1717423864483,-748.96,0.00033148,4]
[328471849,1717423864493,-500.0,0.00033148,4]
[328471850,1717423864502,-500.0,0.00033148,4]
[328471851,1717423864511,-616.01,0.00033148,4]
[328471852,1717423864521,-500.0,0.00033148,4]
[328471853,1717423864530,-653.74,0.00033148,4]
[328471854,1717423864539,-500.0,0.00033148,4]
[328471855,1717423864548,-1158.99,0.00033148,4]
[328471856,1717423864558,-500.0,0.00033148,4]
[328471857,1717423864567,-500.0,0.00033148,4]
[328471858,1717423864577,-802.19,0.00033148,4]
[328471859,1717423864587,-500.0,0.00033148,4]
[328471860,1717423864596,-500.0,0.00033148,4]
[328471861,1717423864606,-500.0,0.00033148,4]
[328471862,1717423864616,-500.0,0.00033148,4]
[328471863,1717423864626,-151.0,0.00033149,7]
[328471864,1717423864636,-500.0,0.0003315,4]
[328471865,1717423864648,-500.0,0.0003315,4]
[328471866,1717423864657,-638.61383976,0.0003315,4]
[328471867,1717423864667,-500.0,0.0003315,4]
[328471868,1717423864676,-223.52,0.0003315,4]
[328471869,1717423864685,-918.28,0.0003315,4]
[328471870,1717423864695,-1370.83,0.0003315,4]
[328471871,1717423864706,-500.0,0.0003315,4]
[328471872,1717423864717,-500.0,0.0003315,4]
[328471873,1717423864726,-1000.18,0.0003315,4]
[328471874,1717423864736,-500.0,0.0003315,4]
[328471875,1717423864746,-2105.69,0.0003315,4]
[328471876,1717423864756,-698.67,0.0003315,4]
[328471877,1717423864767,-898.54,0.0003315,4]
[328471878,1717423864778,-5027.84,0.0003315,4]
[328471879,1717423864789,-500.0,0.0003315,4]
[328471880,1717423864799,-500.0,0.0003315,4]
[328471881,1717423864810,-500.0,0.0003315,4]
[328471882,1717423864821,-500.0,0.0003315,4]
[328471883,1717423864832,-500.0,0.0003315,4]
[328471884,1717423864846,-500.0,0.0003315,4]
[328471885,1717423864857,-500.0,0.0003315,4]
[328471886,1717423864866,-500.0,0.0003315,4]
[328471887,1717423864876,-500.0,0.0003315,4]
[328471888,1717423864888,-500.0,0.0003315,4]
[328471889,1717423864898,-618.53,0.0003315,4]
[328471890,1717423864908,-598.01,0.0003315,4]
[328471891,1717423864919,-4233.41,0.0003315,4]
[328471892,1717423864929,-500.0,0.0003315,4]
[328471893,1717423864939,-500.0,0.0003315,4]
[328471894,1717423864949,-500.0,0.0003315,4]
[328471895,1717423864958,-500.0,0.0003315,4]
[328471896,1717423864968,-500.0,0.0003315,4]
[328471897,1717423864977,-500.0,0.0003315,4]
[328471898,1717423864986,-523.72,0.0003315,4]
[328471899,1717423864996,-150.0,0.00033151,2]
[328471900,1717423865005,-2042.88181228,0.00033157,7]
[328471901,1717423865015,-2042.88181228,0.00033165,7]
[328471902,1717423865024,-150.0,0.00033167,2]
[328471903,1717423865033,-150.0,0.00033167,2]
[328471904,1717423865042,-150.0,0.0003318,2]
[328471905,1717423865051,-150.0,0.00033192,2]
[328471906,1717423865061,-150.0,0.00033195,2]
[328471907,1717423865070,-150.0,0.00033196,2]
[328471908,1717423865079,-141931.81330299,0.000332,5]
[328471909,1717423865088,-156.75576779,0.000332,2]
[328471910,1717423865098,-307.55,0.000332,7]
[328471911,1717423865107,-307.55,0.000332,7]
[328471912,1717423865116,-498.0,0.000332,18]
[328471913,1717423865126,-173.88445557,0.000332,5]
[328471914,1717423865135,-9215.2059804,0.000332,5]
[328471915,1717423865145,-207.84204185,0.000332,5]
[328471916,1717423865155,-608.0,0.000332,22]
[328471917,1717423865164,-345.0,0.000332,6]
[328471918,1717423865173,-1216.31301935,0.000332,15]
[328471919,1717423865182,-1535.99782312,0.000332,15]
[328471920,1717423865192,-1176.68345313,0.000332,2]
[328471921,1717423865201,-211.334701,0.000332,7]
[328471922,1717423865210,-211.334707,0.000332,7]
[328471923,1717423865219,-374.531371,0.000332,7]
[328471924,1717423865228,-151.0,0.000332,7]
[328471925,1717423865237,-374.531371,0.000332,7]
[328471926,1717423865247,-150.0,0.000332,7]
[328471927,1717423865256,-320.24304106,0.000332,2]
[328471928,1717423865265,-150.0,0.00033204,2]
[328471929,1717423865274,-150.0,0.00033207,2]
[328471930,1717423865284,-150.0,0.00033213,2]
[328471931,1717423865294,-301.76085115,0.00033226,2]
[328471932,1717423865303,-150.0,0.00033227,2]
[328471933,1717423865313,-169.7214169,0.00033232,7]
[328471934,1717423865323,-2042.88181228,0.00033235,7]
[328471935,1717423865332,-150.0,0.00033239,2]
[328471936,1717423865341,-150.0,0.00033248,2]
[328471937,1717423865351,-150.0,0.00033252,2]
[328471938,1717423865360,-150.0,0.00033253,2]
[328471939,1717423865369,-5020.06622062,0.00033258,2]
[328471940,1717423865378,-150.0,0.00033259,2]
[328471941,1717423865388,-150.5,0.0003326,15]
[328471942,1717423865398,-158.73,0.0003326,15]
[328471943,1717423865408,-441.26718755,0.00033268,4]
[328471944,1717423865417,-150.5,0.0003327,15]
[328471945,1717423865427,-150.5,0.0003327,15]
[328471946,1717423865437,-300.0,0.0003327,2]
[328471947,1717423865446,-150.0,0.00033275,2]
[328471948,1717423865456,-2193.9566882,0.00033277,2]
[328471949,1717423865465,-1864.4790437,0.00033277,2]
[328471950,1717423865474,-1535.0013991,0.00033277,2]
[328471951,1717423865484,-1205.5237546,0.00033277,2]
[328471952,1717423865493,-876.0461101,0.00033277,2]
[328471953,1717423865504,-151.0,0.00033277,7]
[328471954,1717423865513,-13742.8473761,0.00033277,2]
[328471955,1717423865522,-11679.0140256,0.00033277,2]
[328471956,1717423865531,-9615.1806752,0.00033277,2]
[328471957,1717423865540,-7551.3473248,0.00033277,2]
[328471958,1717423865550,-5487.5139744,0.00033277,2]
[328471959,1717423865559,-374.531371,0.00033277,7]
[328471960,1717423865569,-151.0,0.00033277,7]
[328471961,1717423865578,-374.531367,0.00033277,7]
[328471962,1717423865588,-27648.4468864,0.00033277,2]
[328471963,1717423865597,-23517.6122347,0.00033277,2]
[328471964,1717423865607,-19386.777583,0.00033277,2]
[328471965,1717423865703,-15255.9429314,0.00033277,2]
[328471966,1717423865723,-11125.1082797,0.00033277,2]
[328471967,1717423865734,-4913.4137414,0.00033277,2]
[328471968,1717423865744,-4179.3218836,0.00033277,2]
[328471969,1717423865753,-3445.2300257,0.00033277,2]
[328471970,1717423865763,-2711.1381679,0.00033277,2]
[328471971,1717423865773,-1977.0463101,0.00033277,2]
[328471972,1717423865783,-150.5,0.0003328,15]
[328471973,1717423865792,-150.5,0.0003328,15]
[328471974,1717423865802,-150.0,0.00033285,2]
[328471975,1717423865812,-1522.05576886,0.00033285,2]
[328471976,1717423865823,-1553.0,0.00033288,4]
[328471977,1717423865832,-295.0,0.00033288,4]
[328471978,1717423865843,-163.95,0.00033288,2]
[328471979,1717423865855,-150.0,0.00033288,2]
[328471980,1717423865865,-150.0,0.00033288,2]
[328471981,1717423865875,-422.0,0.00033288,2]
[328471982,1717423865885,-150.0,0.00033288,2]
[328471983,1717423865896,-150.0,0.00033288,2]